[Event "Titled Tuesday Blitz February 15 Late 2022"]
[White "Kobo, Ori"]
[Black "Kraus, Tomas"]
[WhiteFideId "2812320"]
[BlackFideId "331708"]
[WhiteElo "2420"]
[BlackElo "2389"]
[Result "1-0"]
[Round "01"]
[TimeControl "180+1"]
[Date "2022.02.16"]
[WhiteClock "0:00:18"]
[BlackClock "0:00:01"]

1. c4 {[%clk 0:02:57]}  e5 {[%clk 0:02:59]} 2. Nc3 {[%clk 0:02:57]}  Nf6 {[%clk 0:03:00]} 3. g3 {[%clk 0:02:53]}  c6 {[%clk 0:02:59]} 4. d4 {[%clk 0:02:52]}  e4 {[%clk 0:02:58]} 5. d5 {[%clk 0:02:50]}  Bb4 {[%clk 0:02:51]} 6. Bg2 {[%clk 0:02:41]}  O-O {[%clk 0:02:47]} 7. Nh3 {[%clk 0:02:40]}  Re8 {[%clk 0:02:45]} 8. O-O {[%clk 0:02:40]}  d6 {[%clk 0:02:45]} 9. Bg5 {[%clk 0:02:36]}  Bxc3 {[%clk 0:02:32]} 10. bxc3 {[%clk 0:02:35]}  c5 {[%clk 0:02:32]} 11. f3 {[%clk 0:02:19]}  h6 {[%clk 0:02:25]} 12. Bd2 {[%clk 0:02:03]}  e3 {[%clk 0:02:19]} 13. Be1 {[%clk 0:02:03]}  b6 {[%clk 0:02:07]} 14. g4 {[%clk 0:01:58]}  Nh7 {[%clk 0:02:02]} 15. Bg3 {[%clk 0:01:52]}  Ba6 {[%clk 0:01:57]} 16. Qa4 {[%clk 0:01:51]}  Qd7 {[%clk 0:01:54]} 17. Qb3 {[%clk 0:01:40]}  b5 {[%clk 0:01:21]} 18. Nf4 {[%clk 0:01:30]}  bxc4 {[%clk 0:01:16]} 19. Qc2 {[%clk 0:01:30]}  Bb5 {[%clk 0:01:12]} 20. a4 {[%clk 0:01:29]}  Ba6 {[%clk 0:01:11]} 21. Nh5 {[%clk 0:01:27]}  Qe7 {[%clk 0:01:06]} 22. f4 {[%clk 0:01:23]}  Nd7 {[%clk 0:01:05]} 23. Kh1 {[%clk 0:00:56]}  Bb7 {[%clk 0:01:02]} 24. Rab1 {[%clk 0:00:56]}  Rab8 {[%clk 0:01:02]} 25. a5 {[%clk 0:00:50]}  Ndf6 {[%clk 0:01:00]} 26. Bh4 {[%clk 0:00:47]}  Qf8 {[%clk 0:00:23]} 27. Nxf6+ {[%clk 0:00:45]}  Nxf6 {[%clk 0:00:24]} 28. Bxf6 {[%clk 0:00:45]}  gxf6 {[%clk 0:00:24]} 29. Qf5 {[%clk 0:00:45]}  Qg7 {[%clk 0:00:20]} 30. Qd7 {[%clk 0:00:42]}  Ba8 {[%clk 0:00:13]} 31. Rxb8 {[%clk 0:00:33]}  Rxb8 {[%clk 0:00:14]} 32. Qxd6 {[%clk 0:00:31]}  Qf8 {[%clk 0:00:14]} 33. Qxf6 {[%clk 0:00:30]}  Rd8 {[%clk 0:00:15]} 34. Rd1 {[%clk 0:00:27]}  Qd6 {[%clk 0:00:15]} 35. Qe5 {[%clk 0:00:23]}  f6 {[%clk 0:00:14]} 36. Qxe3 {[%clk 0:00:23]}  Kf7 {[%clk 0:00:06]} 37. Qe4 {[%clk 0:00:22]}  Kg7 {[%clk 0:00:06]} 38. Qxc4 {[%clk 0:00:21]}  Qe7 {[%clk 0:00:02]} 39. e4 {[%clk 0:00:20]}  Qf7 {[%clk 0:00:01]} 40. h3 {[%clk 0:00:19]}  Qc7 {[%clk 0:00:01]} 41. Rf1 {[%clk 0:00:18]} 1-0


[Site "https://www.chess.com"]

[Event "Titled Tuesday Blitz February 15 Late 2022"]
[White "Kollars, Dmitrij"]
[Black "Krstulovic, Alex"]
[WhiteFideId "12909572"]
[BlackFideId "760056"]
[WhiteElo "2584"]
[BlackElo "2193"]
[Result "0-1"]
[Round "01"]
[TimeControl "180+1"]
[Date "2022.02.15"]
[WhiteClock "0:00:01"]
[BlackClock "0:00:07"]

1. e4 {[%clk 0:03:00]}  c5 {[%clk 0:02:57]} 2. Nf3 {[%clk 0:02:57]}  e6 {[%clk 0:02:57]} 3. d4 {[%clk 0:02:55]}  cxd4 {[%clk 0:02:58]} 4. Nxd4 {[%clk 0:02:56]}  Nf6 {[%clk 0:02:58]} 5. Nc3 {[%clk 0:02:56]}  Nc6 {[%clk 0:02:58]} 6. a3 {[%clk 0:02:55]}  Be7 {[%clk 0:02:55]} 7. g3 {[%clk 0:02:52]}  d5 {[%clk 0:02:55]} 8. Bg2 {[%clk 0:02:49]}  dxe4 {[%clk 0:02:51]} 9. Nxc6 {[%clk 0:02:48]}  Qxd1+ {[%clk 0:02:51]} 10. Kxd1 {[%clk 0:02:48]}  bxc6 {[%clk 0:02:51]} 11. Nxe4 {[%clk 0:02:49]}  O-O {[%clk 0:02:45]} 12. Nxf6+ {[%clk 0:02:43]}  Bxf6 {[%clk 0:02:46]} 13. c3 {[%clk 0:02:43]}  Ba6 {[%clk 0:02:40]} 14. Kc2 {[%clk 0:02:40]}  Rfd8 {[%clk 0:02:39]} 15. Be4 {[%clk 0:02:40]}  Rab8 {[%clk 0:02:34]} 16. Be3 {[%clk 0:02:37]}  Bc4 {[%clk 0:02:32]} 17. b4 {[%clk 0:02:33]}  a5 {[%clk 0:02:29]} 18. Rhd1 {[%clk 0:02:31]}  a4 {[%clk 0:02:14]} 19. Rxd8+ {[%clk 0:02:19]}  Rxd8 {[%clk 0:02:12]} 20. Bxc6 {[%clk 0:02:05]}  Bb3+ {[%clk 0:02:06]} 21. Kb2 {[%clk 0:02:05]}  Rc8 {[%clk 0:01:49]} 22. b5 {[%clk 0:02:04]}  Bc4 {[%clk 0:01:49]} 23. Rb1 {[%clk 0:01:57]}  Bd3 {[%clk 0:01:36]} 24. Rd1 {[%clk 0:01:18]}  Bxc3+ {[%clk 0:01:34]} 25. Ka2 {[%clk 0:01:17]}  Rd8 {[%clk 0:00:57]} 26. b6 {[%clk 0:00:14]}  Bc4+ {[%clk 0:00:46]} 27. Kb1 {[%clk 0:00:14]}  Rxd1+ {[%clk 0:00:45]} 28. Kc2 {[%clk 0:00:15]}  Rd3 {[%clk 0:00:44]} 29. Bf4 {[%clk 0:00:09]}  Ba5 {[%clk 0:00:10]} 30. b7 {[%clk 0:00:08]}  Rc3+ {[%clk 0:00:10]} 31. Kd1 {[%clk 0:00:06]}  Rd3+ {[%clk 0:00:11]} 32. Kc2 {[%clk 0:00:05]}  Rc3+ {[%clk 0:00:11]} 33. Kd1 {[%clk 0:00:03]}  Rd3+ {[%clk 0:00:11]} 34. Ke2 {[%clk 0:00:01]}  Rxa3+ {[%clk 0:00:07]} 0-1


[Site "https://www.chess.com"]

[Event "Titled Tuesday Blitz February 15 Late 2022"]
[White "Kostiukov, Alexandr"]
[Black "Rasulov, Vugar"]
[WhiteFideId "14108100"]
[BlackFideId "13402390"]
[WhiteElo "2202"]
[BlackElo "2560"]
[Result "0-1"]
[Round "01"]
[TimeControl "180+1"]
[Date "2022.02.16"]
[WhiteClock "0:01:16"]
[BlackClock "0:02:24"]

1. g3 {[%clk 0:02:56]}  e5 {[%clk 0:02:59]} 2. Bg2 {[%clk 0:02:56]}  Nf6 {[%clk 0:03:00]} 3. c4 {[%clk 0:02:56]}  Nc6 {[%clk 0:02:59]} 4. Nc3 {[%clk 0:02:54]}  Bc5 {[%clk 0:02:59]} 5. e3 {[%clk 0:02:54]}  O-O {[%clk 0:02:56]} 6. Nge2 {[%clk 0:02:54]}  d6 {[%clk 0:02:57]} 7. O-O {[%clk 0:02:54]}  Bg4 {[%clk 0:02:56]} 8. h3 {[%clk 0:02:53]}  Bh5 {[%clk 0:02:56]} 9. g4 {[%clk 0:02:54]}  Bg6 {[%clk 0:02:56]} 10. d4 {[%clk 0:02:54]}  Bb6 {[%clk 0:02:57]} 11. d5 {[%clk 0:02:48]}  Ne7 {[%clk 0:02:55]} 12. Ng3 {[%clk 0:02:45]}  Nd7 {[%clk 0:02:54]} 13. e4 {[%clk 0:02:41]}  Kh8 {[%clk 0:02:48]} 14. Qe2 {[%clk 0:02:36]}  c6 {[%clk 0:02:46]} 15. Be3 {[%clk 0:02:34]}  cxd5 {[%clk 0:02:46]} 16. cxd5 {[%clk 0:02:34]}  Rc8 {[%clk 0:02:45]} 17. Rac1 {[%clk 0:02:32]}  Ng8 {[%clk 0:02:43]} 18. Nb5 {[%clk 0:02:22]}  Nc5 {[%clk 0:02:39]} 19. b4 {[%clk 0:02:14]}  Na4 {[%clk 0:02:39]} 20. Rxc8 {[%clk 0:02:01]}  Qxc8 {[%clk 0:02:40]} 21. Nxd6 {[%clk 0:02:01]}  Qd7 {[%clk 0:02:40]} 22. Nc4 {[%clk 0:01:49]}  f6 {[%clk 0:02:38]} 23. Nf5 {[%clk 0:01:43]}  Bxf5 {[%clk 0:02:36]} 24. exf5 {[%clk 0:01:42]}  Qb5 {[%clk 0:02:27]} 25. Re1 {[%clk 0:01:30]}  Bxe3 {[%clk 0:02:25]} 26. Nxe3 {[%clk 0:01:28]}  Qxb4 {[%clk 0:02:25]} 27. Qd3 {[%clk 0:01:18]}  Qxe1+ {[%clk 0:02:24]} 28. Bf1 {[%clk 0:01:16]}  Nc5 {[%clk 0:02:24]} 0-1


[Site "https://www.chess.com"]

[Event "Titled Tuesday Blitz February 15 Late 2022"]
[White "Kozin, Yuri"]
[Black "Niemann, Hans Moke"]
[WhiteFideId "4129920"]
[BlackFideId "2093596"]
[WhiteElo "2527"]
[BlackElo "2636"]
[Result "0-1"]
[Round "01"]
[TimeControl "180+1"]
[Date "2022.02.15"]
[WhiteClock "0:00:12"]
[BlackClock "0:00:41"]

1. e4 {[%clk 0:02:59]}  c5 {[%clk 0:02:56]} 2. Nf3 {[%clk 0:02:59]}  Nc6 {[%clk 0:02:52]} 3. d4 {[%clk 0:03:00]}  cxd4 {[%clk 0:02:52]} 4. Nxd4 {[%clk 0:03:01]}  Nf6 {[%clk 0:02:52]} 5. Nc3 {[%clk 0:03:01]}  d6 {[%clk 0:02:53]} 6. Bc4 {[%clk 0:02:59]}  e6 {[%clk 0:02:49]} 7. Be3 {[%clk 0:02:59]}  a6 {[%clk 0:02:50]} 8. Bb3 {[%clk 0:02:59]}  Bd7 {[%clk 0:02:49]} 9. Rg1 {[%clk 0:02:54]}  b5 {[%clk 0:02:48]} 10. a3 {[%clk 0:02:49]}  h5 {[%clk 0:02:28]} 11. f4 {[%clk 0:02:42]}  Na5 {[%clk 0:02:20]} 12. h3 {[%clk 0:02:25]}  Qc7 {[%clk 0:02:16]} 13. Qf3 {[%clk 0:02:20]}  Rc8 {[%clk 0:02:15]} 14. g4 {[%clk 0:02:12]}  hxg4 {[%clk 0:02:11]} 15. hxg4 {[%clk 0:02:12]}  Nxb3 {[%clk 0:02:01]} 16. cxb3 {[%clk 0:01:59]}  Bc6 {[%clk 0:01:37]} 17. Rc1 {[%clk 0:01:49]}  Qb7 {[%clk 0:01:36]} 18. Nxc6 {[%clk 0:01:47]}  Rxc6 {[%clk 0:01:33]} 19. g5 {[%clk 0:01:42]}  Nd7 {[%clk 0:01:19]} 20. g6 {[%clk 0:01:42]}  Nf6 {[%clk 0:01:15]} 21. gxf7+ {[%clk 0:01:41]}  Kxf7 {[%clk 0:01:16]} 22. f5 {[%clk 0:01:38]}  e5 {[%clk 0:01:14]} 23. Bg5 {[%clk 0:01:21]}  Be7 {[%clk 0:01:08]} 24. Bxf6 {[%clk 0:01:17]}  Bxf6 {[%clk 0:01:09]} 25. Qg2 {[%clk 0:01:15]}  b4 {[%clk 0:01:05]} 26. axb4 {[%clk 0:01:01]}  Qxb4 {[%clk 0:01:05]} 27. Rd1 {[%clk 0:00:38]}  Rh4 {[%clk 0:00:46]} 28. Qg6+ {[%clk 0:00:25]}  Kf8 {[%clk 0:00:45]} 29. Rg4 {[%clk 0:00:23]}  Rh6 {[%clk 0:00:41]} 30. Qxh6 {[%clk 0:00:13]}  gxh6 {[%clk 0:00:41]} 31. Rg6 {[%clk 0:00:13]}  Bg5 {[%clk 0:00:42]} 32. Re6 {[%clk 0:00:12]}  Rxc3 {[%clk 0:00:41]} 33. bxc3 {[%clk 0:00:12]}  Qxe4+ {[%clk 0:00:41]} 0-1


[Site "https://www.chess.com"]

[Event "Titled Tuesday Blitz February 15 Late 2022"]
[White "Ladan, Nicholas"]
[Black "Mikhailov, Viacheslav"]
[WhiteFideId "30918855"]
[BlackFideId "4187369"]
[WhiteElo "2341"]
[BlackElo "2381"]
[Result "0-1"]
[Round "01"]
[TimeControl "180+1"]
[Date "2022.02.16"]
[WhiteClock "0:00:24"]
[BlackClock "0:01:18"]

1. d4 {[%clk 0:02:53]}  Nf6 {[%clk 0:02:59]} 2. c4 {[%clk 0:02:50]}  g6 {[%clk 0:02:59]} 3. g3 {[%clk 0:02:51]}  Bg7 {[%clk 0:02:59]} 4. Nf3 {[%clk 0:02:51]}  O-O {[%clk 0:03:00]} 5. Bg2 {[%clk 0:02:51]}  d6 {[%clk 0:02:59]} 6. O-O {[%clk 0:02:52]}  Nc6 {[%clk 0:03:00]} 7. Nc3 {[%clk 0:02:51]}  Bf5 {[%clk 0:03:00]} 8. h3 {[%clk 0:02:50]}  Ne4 {[%clk 0:02:59]} 9. Nd5 {[%clk 0:02:42]}  Nf6 {[%clk 0:02:54]} 10. Nc3 {[%clk 0:02:41]}  e5 {[%clk 0:02:51]} 11. Re1 {[%clk 0:02:33]}  Ne4 {[%clk 0:02:47]} 12. Nxe4 {[%clk 0:02:18]}  Bxe4 {[%clk 0:02:48]} 13. d5 {[%clk 0:02:13]}  Na5 {[%clk 0:02:42]} 14. b3 {[%clk 0:02:05]}  Bxf3 {[%clk 0:02:40]} 15. exf3 {[%clk 0:02:05]}  c6 {[%clk 0:02:29]} 16. Bb2 {[%clk 0:01:57]}  cxd5 {[%clk 0:02:27]} 17. cxd5 {[%clk 0:01:58]}  Qb6 {[%clk 0:02:24]} 18. Qd2 {[%clk 0:01:49]}  Qa6 {[%clk 0:02:03]} 19. Bf1 {[%clk 0:01:42]}  b5 {[%clk 0:02:03]} 20. Qb4 {[%clk 0:01:26]}  Rab8 {[%clk 0:01:57]} 21. a4 {[%clk 0:01:23]}  Nb7 {[%clk 0:01:39]} 22. axb5 {[%clk 0:01:21]}  Qb6 {[%clk 0:01:39]} 23. Ra6 {[%clk 0:01:20]}  Qc5 {[%clk 0:01:35]} 24. Qxc5 {[%clk 0:01:17]}  Nxc5 {[%clk 0:01:36]} 25. Rxa7 {[%clk 0:01:05]}  Nxb3 {[%clk 0:01:36]} 26. Ba3 {[%clk 0:01:04]}  Rfd8 {[%clk 0:01:35]} 27. Ra6 {[%clk 0:01:00]}  Nd4 {[%clk 0:01:35]} 28. Rxd6 {[%clk 0:00:57]}  Nxf3+ {[%clk 0:01:33]} 29. Kh1 {[%clk 0:00:53]}  Nxe1 {[%clk 0:01:33]} 30. Rc6 {[%clk 0:00:35]}  Nf3 {[%clk 0:01:27]} 31. d6 {[%clk 0:00:32]}  Nd4 {[%clk 0:01:27]} 32. Rc5 {[%clk 0:00:29]}  Rxd6 {[%clk 0:01:23]} 33. Bc4 {[%clk 0:00:27]}  Rd7 {[%clk 0:01:21]} 34. b6 {[%clk 0:00:26]}  Bf8 {[%clk 0:01:21]} 35. Rc7 {[%clk 0:00:24]}  Rxc7 {[%clk 0:01:18]} 36. bxc7 {[%clk 0:00:24]}  Rc8 {[%clk 0:01:18]} 0-1


[Site "https://www.chess.com"]

[Event "Titled Tuesday Blitz February 15 Late 2022"]
[White "Levine, David"]
[Black "Kim, Sergey"]
[WhiteFideId "2011611"]
[BlackFideId "13700570"]
[WhiteElo "2148"]
[BlackElo "2605"]
[Result "0-1"]
[Round "01"]
[TimeControl "180+1"]
[Date "2022.02.16"]
[WhiteClock "0:00:01"]
[BlackClock "0:00:45"]

1. d4 {[%clk 0:02:59]}  Nf6 {[%clk 0:02:59]} 2. c4 {[%clk 0:02:59]}  g6 {[%clk 0:02:59]} 3. g3 {[%clk 0:02:59]}  Bg7 {[%clk 0:03:00]} 4. Bg2 {[%clk 0:02:59]}  O-O {[%clk 0:03:00]} 5. Nf3 {[%clk 0:02:59]}  d6 {[%clk 0:03:00]} 6. O-O {[%clk 0:02:59]}  Nbd7 {[%clk 0:03:00]} 7. Nc3 {[%clk 0:02:59]}  e5 {[%clk 0:03:00]} 8. e4 {[%clk 0:02:59]}  exd4 {[%clk 0:03:00]} 9. Nxd4 {[%clk 0:02:58]}  Re8 {[%clk 0:03:01]} 10. Qc2 {[%clk 0:02:51]}  Nc5 {[%clk 0:03:01]} 11. Rd1 {[%clk 0:02:45]}  c6 {[%clk 0:03:00]} 12. b4 {[%clk 0:02:39]}  Ne6 {[%clk 0:02:59]} 13. Nde2 {[%clk 0:02:37]}  Qb6 {[%clk 0:02:43]} 14. Rb1 {[%clk 0:02:26]}  Ng4 {[%clk 0:02:43]} 15. Nf4 {[%clk 0:02:24]}  Ne5 {[%clk 0:02:33]} 16. Nce2 {[%clk 0:02:00]}  Qc7 {[%clk 0:02:22]} 17. h3 {[%clk 0:01:58]}  Ng5 {[%clk 0:02:20]} 18. Kh2 {[%clk 0:01:49]}  Nef3+ {[%clk 0:02:10]} 19. Kh1 {[%clk 0:01:48]}  Ne5 {[%clk 0:02:08]} 20. h4 {[%clk 0:01:46]}  Ne6 {[%clk 0:02:08]} 21. c5 {[%clk 0:01:39]}  dxc5 {[%clk 0:02:06]} 22. bxc5 {[%clk 0:01:38]}  Nxf4 {[%clk 0:02:06]} 23. Nxf4 {[%clk 0:01:33]}  Bg4 {[%clk 0:02:05]} 24. Rd6 {[%clk 0:01:24]}  Rad8 {[%clk 0:02:04]} 25. Ba3 {[%clk 0:01:20]}  b6 {[%clk 0:01:59]} 26. Rxd8 {[%clk 0:01:13]}  Rxd8 {[%clk 0:01:58]} 27. cxb6 {[%clk 0:01:13]}  axb6 {[%clk 0:01:58]} 28. Qb3 {[%clk 0:01:07]}  b5 {[%clk 0:01:55]} 29. f3 {[%clk 0:01:06]}  Bc8 {[%clk 0:01:52]} 30. Rd1 {[%clk 0:00:59]}  Nc4 {[%clk 0:01:47]} 31. Bc5 {[%clk 0:00:57]}  Ne5 {[%clk 0:01:25]} 32. Ba3 {[%clk 0:00:46]}  Qa5 {[%clk 0:01:23]} 33. Rxd8+ {[%clk 0:00:38]}  Qxd8 {[%clk 0:01:22]} 34. Qc2 {[%clk 0:00:37]}  Qd4 {[%clk 0:01:19]} 35. Bc5 {[%clk 0:00:35]}  Qa1+ {[%clk 0:01:14]} 36. Kh2 {[%clk 0:00:35]}  h5 {[%clk 0:01:10]} 37. Ne2 {[%clk 0:00:24]}  Be6 {[%clk 0:01:07]} 38. Nd4 {[%clk 0:00:20]}  Qxa2 {[%clk 0:01:04]} 39. Qxa2 {[%clk 0:00:17]}  Bxa2 {[%clk 0:01:04]} 40. f4 {[%clk 0:00:17]}  Nd3 {[%clk 0:00:58]} 41. Bb6 {[%clk 0:00:13]}  b4 {[%clk 0:00:53]} 42. Bf1 {[%clk 0:00:11]}  c5 {[%clk 0:00:48]} 43. Bxd3 {[%clk 0:00:09]}  Bxd4 {[%clk 0:00:47]} 44. e5 {[%clk 0:00:09]}  b3 {[%clk 0:00:46]} 45. e6 {[%clk 0:00:01]}  fxe6 {[%clk 0:00:45]} 0-1


[Site "https://www.chess.com"]

[Event "Titled Tuesday Blitz February 15 Late 2022"]
[White "Martinez Alcantara, Jose Eduardo"]
[Black "Martin Duque, Jesus"]
[WhiteFideId "3805662"]
[BlackFideId "2208954"]
[WhiteElo "2690"]
[BlackElo "2243"]
[Result "1-0"]
[Round "01"]
[TimeControl "180+1"]
[Date "2022.02.15"]
[WhiteClock "0:00:22"]
[BlackClock "0:00:01"]

1. e4 {[%clk 0:03:00]}  c5 {[%clk 0:02:57]} 2. Nf3 {[%clk 0:03:01]}  e6 {[%clk 0:02:57]} 3. c3 {[%clk 0:03:01]}  Nf6 {[%clk 0:02:55]} 4. Bd3 {[%clk 0:03:01]}  b6 {[%clk 0:02:54]} 5. O-O {[%clk 0:03:01]}  Bb7 {[%clk 0:02:54]} 6. Re1 {[%clk 0:03:01]}  Be7 {[%clk 0:02:54]} 7. Bc2 {[%clk 0:03:01]}  d5 {[%clk 0:02:54]} 8. e5 {[%clk 0:03:01]}  Nfd7 {[%clk 0:02:53]} 9. d4 {[%clk 0:03:02]}  g5 {[%clk 0:02:53]} 10. Be3 {[%clk 0:02:58]}  g4 {[%clk 0:02:51]} 11. Nfd2 {[%clk 0:02:56]}  h5 {[%clk 0:02:48]} 12. Nf1 {[%clk 0:02:54]}  Nc6 {[%clk 0:02:44]} 13. a3 {[%clk 0:02:50]}  Rc8 {[%clk 0:02:31]} 14. b4 {[%clk 0:02:50]}  cxd4 {[%clk 0:02:31]} 15. cxd4 {[%clk 0:02:50]}  Bg5 {[%clk 0:02:27]} 16. Qd2 {[%clk 0:02:45]}  Bxe3 {[%clk 0:02:00]} 17. fxe3 {[%clk 0:02:46]}  h4 {[%clk 0:01:55]} 18. Nc3 {[%clk 0:02:46]}  Qg5 {[%clk 0:01:54]} 19. Nb5 {[%clk 0:02:42]}  Ke7 {[%clk 0:01:53]} 20. Nd6 {[%clk 0:02:41]}  Rc7 {[%clk 0:01:50]} 21. b5 {[%clk 0:02:38]}  Nxd4 {[%clk 0:01:24]} 22. Qxd4 {[%clk 0:02:39]}  Rxc2 {[%clk 0:01:22]} 23. Nxb7 {[%clk 0:02:20]}  Nxe5 {[%clk 0:01:19]} 24. Qb4+ {[%clk 0:02:02]}  Kf6 {[%clk 0:01:07]} 25. Rec1 {[%clk 0:01:35]}  Nf3+ {[%clk 0:00:44]} 26. Kh1 {[%clk 0:01:34]}  Rf2 {[%clk 0:00:17]} 27. Rc7 {[%clk 0:01:13]}  h3 {[%clk 0:00:14]} 28. Qe7+ {[%clk 0:01:05]}  Kg6 {[%clk 0:00:13]} 29. Qxf7+ {[%clk 0:00:55]}  Kh6 {[%clk 0:00:12]} 30. Qxe6+ {[%clk 0:00:54]}  Kh5 {[%clk 0:00:12]} 31. gxf3 {[%clk 0:00:50]}  gxf3 {[%clk 0:00:02]} 32. Qxh3+ {[%clk 0:00:50]}  Kg6 {[%clk 0:00:02]} 33. Qe6+ {[%clk 0:00:46]}  Kh5 {[%clk 0:00:01]} 34. Qf7+ {[%clk 0:00:22]} 1-0


[Site "https://www.chess.com"]

[Event "Titled Tuesday Blitz February 15 Late 2022"]
[White "Michelakos, Panagiotis"]
[Black "Prohorov, Olexandr"]
[WhiteFideId "4216067"]
[BlackFideId "14105578"]
[WhiteElo "2140"]
[BlackElo "1993"]
[Result "1-0"]
[Round "01"]
[TimeControl "180+1"]
[Date "2022.02.16"]
[WhiteClock "0:00:32"]
[BlackClock "0:00:53"]

1. d4 {[%clk 0:02:57]}  g6 {[%clk 0:02:56]} 2. g3 {[%clk 0:02:48]}  Bg7 {[%clk 0:02:55]} 3. Bg2 {[%clk 0:02:49]}  f5 {[%clk 0:02:55]} 4. Nc3 {[%clk 0:02:48]}  Nf6 {[%clk 0:02:55]} 5. Bg5 {[%clk 0:02:36]}  O-O {[%clk 0:02:55]} 6. Bxf6 {[%clk 0:02:35]}  Bxf6 {[%clk 0:02:56]} 7. e4 {[%clk 0:02:35]}  fxe4 {[%clk 0:02:56]} 8. Nxe4 {[%clk 0:02:36]}  Bg7 {[%clk 0:02:53]} 9. c3 {[%clk 0:02:25]}  Nc6 {[%clk 0:02:41]} 10. Nf3 {[%clk 0:02:16]}  d5 {[%clk 0:02:27]} 11. Nc5 {[%clk 0:02:15]}  Bg4 {[%clk 0:02:20]} 12. h3 {[%clk 0:02:12]}  Bxf3 {[%clk 0:02:19]} 13. Bxf3 {[%clk 0:02:12]}  e5 {[%clk 0:02:03]} 14. Ne6 {[%clk 0:02:06]}  Qf6 {[%clk 0:01:53]} 15. Nxf8 {[%clk 0:02:03]}  Rxf8 {[%clk 0:01:54]} 16. Bxd5+ {[%clk 0:02:00]}  Kh8 {[%clk 0:01:54]} 17. O-O {[%clk 0:01:57]}  exd4 {[%clk 0:01:49]} 18. Bg2 {[%clk 0:01:49]}  dxc3 {[%clk 0:01:48]} 19. bxc3 {[%clk 0:01:49]}  Qxc3 {[%clk 0:01:48]} 20. Rc1 {[%clk 0:01:46]}  Qb2 {[%clk 0:01:39]} 21. Bxc6 {[%clk 0:01:38]}  bxc6 {[%clk 0:01:39]} 22. Rc2 {[%clk 0:01:39]}  Qb6 {[%clk 0:01:35]} 23. Rd2 {[%clk 0:01:38]}  c5 {[%clk 0:01:33]} 24. Rd8 {[%clk 0:01:36]}  Qf6 {[%clk 0:01:28]} 25. Rxf8+ {[%clk 0:01:33]}  Qxf8 {[%clk 0:01:28]} 26. Qd7 {[%clk 0:01:26]}  Bd4 {[%clk 0:01:24]} 27. Qxc7 {[%clk 0:01:21]}  Qf3 {[%clk 0:01:24]} 28. a4 {[%clk 0:00:53]}  Qd3 {[%clk 0:01:12]} 29. Re1 {[%clk 0:00:46]}  Bxf2+ {[%clk 0:00:53]} 30. Kxf2 {[%clk 0:00:45]}  Qd2+ {[%clk 0:00:53]} 31. Re2 {[%clk 0:00:38]}  Qd4+ {[%clk 0:00:53]} 32. Kg2 {[%clk 0:00:33]}  Qd5+ {[%clk 0:00:53]} 33. Kh2 {[%clk 0:00:32]} 1-0


[Site "https://www.chess.com"]

[Event "Titled Tuesday Blitz February 15 Late 2022"]
[White "Mogranzini, Roberto"]
[Black "Hess, Robert"]
[WhiteFideId "810894"]
[BlackFideId "2022036"]
[WhiteElo "2444"]
[BlackElo "2825"]
[Result "0-1"]
[Round "01"]
[TimeControl "180+1"]
[Date "2022.02.16"]
[WhiteClock "0:00:21"]
[BlackClock "0:00:11"]

1. e4 {[%clk 0:02:58]}  g6 {[%clk 0:03:00]} 2. d4 {[%clk 0:02:57]}  Bg7 {[%clk 0:03:01]} 3. Nc3 {[%clk 0:02:58]}  a6 {[%clk 0:03:01]} 4. Be3 {[%clk 0:02:58]}  d6 {[%clk 0:03:01]} 5. Qd2 {[%clk 0:02:59]}  e6 {[%clk 0:02:59]} 6. f3 {[%clk 0:02:58]}  h6 {[%clk 0:02:58]} 7. h4 {[%clk 0:02:48]}  Nd7 {[%clk 0:02:58]} 8. Nge2 {[%clk 0:02:47]}  b5 {[%clk 0:02:57]} 9. g4 {[%clk 0:02:42]}  Bb7 {[%clk 0:02:55]} 10. Ng3 {[%clk 0:02:42]}  Ne7 {[%clk 0:02:44]} 11. a3 {[%clk 0:02:28]}  Nb6 {[%clk 0:02:44]} 12. f4 {[%clk 0:02:16]}  d5 {[%clk 0:02:22]} 13. e5 {[%clk 0:02:11]}  Nc4 {[%clk 0:02:21]} 14. Qc1 {[%clk 0:02:03]}  Nxe3 {[%clk 0:02:10]} 15. Qxe3 {[%clk 0:02:04]}  c5 {[%clk 0:02:11]} 16. Nce2 {[%clk 0:02:00]}  Nc6 {[%clk 0:01:47]} 17. h5 {[%clk 0:01:48]}  cxd4 {[%clk 0:01:36]} 18. Nxd4 {[%clk 0:01:48]}  g5 {[%clk 0:01:36]} 19. f5 {[%clk 0:01:38]}  Nxd4 {[%clk 0:01:23]} 20. Qxd4 {[%clk 0:01:38]}  Qc7 {[%clk 0:01:23]} 21. f6 {[%clk 0:01:19]}  Bxf6 {[%clk 0:01:21]} 22. exf6 {[%clk 0:01:09]}  Qxg3+ {[%clk 0:01:22]} 23. Kd1 {[%clk 0:01:10]}  O-O {[%clk 0:00:55]} 24. Rg1 {[%clk 0:01:09]}  Qd6 {[%clk 0:00:48]} 25. a4 {[%clk 0:00:57]}  Bc6 {[%clk 0:00:38]} 26. Ra3 {[%clk 0:00:54]}  e5 {[%clk 0:00:37]} 27. Qf2 {[%clk 0:00:53]}  b4 {[%clk 0:00:33]} 28. Re3 {[%clk 0:00:51]}  d4 {[%clk 0:00:27]} 29. Re1 {[%clk 0:00:49]}  e4 {[%clk 0:00:25]} 30. Kc1 {[%clk 0:00:45]}  b3 {[%clk 0:00:20]} 31. Qf5 {[%clk 0:00:41]}  Bd7 {[%clk 0:00:13]} 32. Qa5 {[%clk 0:00:34]}  Rac8 {[%clk 0:00:11]} 33. Rg2 {[%clk 0:00:29]}  Qxf6 {[%clk 0:00:10]} 34. Qb4 {[%clk 0:00:20]}  Qf4+ {[%clk 0:00:09]} 35. Kb1 {[%clk 0:00:19]}  bxc2+ {[%clk 0:00:09]} 36. Rxc2 {[%clk 0:00:19]}  Rxc2 {[%clk 0:00:10]} 37. Kxc2 {[%clk 0:00:20]}  d3+ {[%clk 0:00:10]} 38. Kb1 {[%clk 0:00:20]}  d2 {[%clk 0:00:11]} 39. Rd1 {[%clk 0:00:21]}  e3 {[%clk 0:00:11]} 40. Be2 {[%clk 0:00:21]}  Qxb4 {[%clk 0:00:11]} 0-1


[Site "https://www.chess.com"]